fUST/lending_fUST_20240920
["ID","MTS","AMOUNT","RATE_DAILY","PERIOD"]
[338644700,1726841447124,-151.0,0.00016438,2]
[338644701,1726841447135,-500.0,0.00016438,2]
[338644702,1726841447145,-500.0,0.00016438,2]
[338644703,1726841447155,-500.0,0.00016438,2]
[338644704,1726841447165,-690.13,0.00016438,2]
[338644705,1726841447175,-500.0,0.00016438,2]
[338644706,1726841447185,-500.0,0.00016438,2]
[338644707,1726841447194,-500.0,0.00016438,2]
[338644708,1726841447203,-500.0,0.00016438,2]
[338644709,1726841447213,-1075.37,0.00016438,2]
[338644710,1726841447223,-500.0,0.00016438,2]
[338644711,1726841447232,-500.0,0.00016438,2]
[338644712,1726841447241,-1597.72,0.00016438,2]
[338644713,1726841447251,-500.0,0.00016438,2]
[338644714,1726841447260,-500.0,0.00016438,2]
[338644715,1726841447270,-500.0,0.00016438,2]
[338644716,1726841447280,-500.0,0.00016438,2]
[338644717,1726841447291,-151.0,0.00016438,2]
[338644718,1726841447300,-151.0,0.00016438,2]
[338644719,1726841447310,-151.0,0.00016438,2]
[338644720,1726841447320,-500.0,0.00016438,2]
[338644721,1726841447332,-151.0,0.00016438,2]
[338644722,1726841447341,-500.0,0.00016438,2]
[338644723,1726841447351,-500.0,0.00016438,2]
[338644724,1726841447361,-500.0,0.00016438,2]
[338644725,1726841447371,-631.79,0.00016438,2]
[338644726,1726841447381,-334.67906808,0.00016438,2]
[338644727,1726841447391,-500.0,0.00016438,2]
[338644728,1726841447401,-500.0,0.00016438,2]
[338644729,1726841447411,-705.68,0.00016438,2]
[338644730,1726841447421,-500.0,0.00016438,2]
[338644731,1726841447430,-500.0,0.00016438,2]
[338644732,1726841447440,-500.0,0.00016438,2]
[338644733,1726841447449,-500.0,0.00016438,2]
[338644734,1726841447459,-500.0,0.00016438,2]
[338644735,1726841447469,-500.0,0.00016438,2]
[338644736,1726841447478,-1171.9,0.00016438,2]
[338644737,1726841447488,-500.0,0.00016438,2]
[338644738,1726841447497,-500.0,0.00016438,2]
[338644739,1726841447506,-500.0,0.00016438,2]
[338644740,1726841447516,-1146.18,0.00016438,2]
[338644741,1726841447525,-500.0,0.00016438,2]
[338644742,1726841447535,-655.68,0.00016438,2]
[338644743,1726841447546,-500.0,0.00016438,2]
[338644744,1726841447555,-500.0,0.00016438,2]
[338644745,1726841447565,-500.0,0.00016438,2]
[338644746,1726841447574,-603.76098229,0.00016438,2]
[338644747,1726841447584,-500.0,0.00016438,2]
[338644748,1726841447594,-500.0,0.00016438,2]
[338644749,1726841447606,-378.344378,0.00016438,2]
[338644750,1726841447615,-378.344378,0.00016438,2]
[338644751,1726841447625,-378.344378,0.00016438,2]
[338644752,1726841447634,-378.344378,0.00016438,2]
[338644753,1726841447645,-500.0,0.00016438,2]
[338644754,1726841447655,-500.0,0.00016438,2]
[338644755,1726841447665,-378.344378,0.00016438,2]
[338644756,1726841447676,-378.344378,0.00016438,2]
[338644757,1726841447686,-378.344378,0.00016438,2]
[338644758,1726841447695,-378.344378,0.00016438,2]
[338644759,1726841447705,-500.0,0.00016438,2]
[338644760,1726841447714,-500.0,0.00016438,2]
[338644761,1726841447724,-645.84,0.00016438,2]
[338644762,1726841447734,-243.23679135,0.00016438,2]
[338644763,1726841447743,-500.0,0.00016438,2]
[338644764,1726841447753,-500.0,0.00016438,2]
[338644765,1726841447762,-500.28816432,0.00016438,2]
[338644766,1726841447772,-518.72614352,0.00016438,2]
[338644767,1726841447781,-500.0,0.00016438,2]
[338644768,1726841447793,-500.0,0.00016438,2]
[338644769,1726841447804,-500.0,0.00016438,2]
[338644770,1726841447814,-500.0,0.00016438,2]
[338644771,1726841447823,-500.0,0.00016438,2]
[338644772,1726841447833,-501.00989565,0.00016438,2]
[338644773,1726841447842,-508.57763161,0.00016438,2]
[338644774,1726841447851,-500.0,0.00016438,2]
[338644775,1726841447861,-500.0,0.00016438,2]
[338644776,1726841447870,-500.0,0.00016438,2]
[338644777,1726841447879,-615.47,0.00016438,2]
[338644778,1726841447889,-500.0,0.00016438,2]
[338644779,1726841447898,-777.55,0.00016438,2]
[338644780,1726841447907,-500.0,0.00016438,2]
[338644781,1726841447916,-151.0,0.00016438,2]
[338644782,1726841447925,-151.0,0.00016438,2]
[338644783,1726841447934,-151.0,0.00016438,2]
[338644784,1726841447943,-310.80138632,0.00016438,2]
[338644785,1726841447952,-151.0,0.00016438,2]
[338644786,1726841447961,-500.0,0.00016438,2]
[338644787,1726841447970,-500.0,0.00016438,2]
[338644788,1726841447978,-201.13738,0.00016438,2]
[338644789,1726841447987,-186.9040059,0.00016438,2]
[338644790,1726841447997,-500.0,0.00016438,2]
[338644791,1726841448007,-500.0,0.00016438,2]
[338644792,1726841448017,-1540.84,0.00016438,2]
[338644793,1726841448026,-637.75,0.00016438,2]
[338644794,1726841448035,-500.0,0.00016438,2]
[338644795,1726841448053,-500.0,0.00016438,2]
[338644796,1726841448062,-877.67,0.00016438,2]
[338644797,1726841448071,-500.0,0.00016438,2]
[338644798,1726841448085,-502.16934456,0.00016438,2]
[338644799,1726841448095,-500.0,0.00016438,2]
[338644800,1726841448104,-500.0,0.00016438,2]
[338644801,1726841448114,-151.0,0.00016438,2]
[338644802,1726841448123,-500.0,0.00016438,2]
[338644803,1726841448133,-151.0,0.00016438,2]
[338644804,1726841448142,-500.0,0.00016438,2]
[338644805,1726841448152,-151.0,0.00016438,2]
[338644806,1726841448162,-151.0,0.00016438,2]
[338644807,1726841448171,-500.0,0.00016438,2]
[338644808,1726841448181,-255.061028,0.00016438,2]
[338644809,1726841448191,-500.0,0.00016438,2]
[338644810,1726841448200,-500.0,0.00016438,2]
[338644811,1726841448210,-500.0,0.00016438,2]
[338644812,1726841448220,-500.0,0.00016438,2]
[338644813,1726841448229,-500.0,0.00016438,2]
[338644814,1726841448238,-500.0,0.00016438,2]
[338644815,1726841448248,-500.0,0.00016438,2]
[338644816,1726841448257,-500.0,0.00016438,2]
[338644817,1726841448267,-500.0,0.00016438,2]
[338644818,1726841448276,-500.0,0.00016438,2]
[338644819,1726841448286,-555.96,0.00016438,2]
[338644820,1726841448297,-500.0,0.00016438,2]
[338644821,1726841448307,-500.28808751,0.00016438,2]
[338644822,1726841448317,-500.0,0.00016438,2]
[338644823,1726841448326,-500.0,0.00016438,2]
[338644824,1726841448336,-500.0,0.00016438,2]
[338644825,1726841448346,-577.77,0.00016438,2]
[338644826,1726841448356,-500.0,0.00016438,2]
[338644827,1726841448366,-500.0,0.00016438,2]
[338644828,1726841448375,-500.0,0.00016438,2]
[338644829,1726841448385,-500.0,0.00016438,2]
[338644830,1726841448395,-500.0,0.00016438,2]
[338644831,1726841448405,-500.0,0.00016438,2]
[338644832,1726841448414,-500.0,0.00016438,2]
[338644833,1726841448424,-500.0,0.00016438,2]
[338644834,1726841448435,-579.96068453,0.00016438,2]
[338644835,1726841448446,-500.0,0.00016438,2]
[338644836,1726841448461,-500.0,0.00016438,2]
[338644837,1726841448471,-500.0,0.00016438,2]
[338644838,1726841448482,-500.0,0.00016438,2]
[338644839,1726841448493,-722.61,0.00016438,2]
[338644840,1726841448503,-500.0,0.00016438,2]
[338644841,1726841448512,-500.0,0.00016438,2]
[338644842,1726841448523,-500.0,0.00016438,2]
[338644843,1726841448537,-500.0,0.00016438,2]
[338644844,1726841448548,-500.0,0.00016438,2]
[338644845,1726841448558,-531.53,0.00016438,2]
[338644846,1726841448569,-329.58,0.00016438,2]
[338644847,1726841448578,-500.0,0.00016438,2]
[338644848,1726841448591,-500.0,0.00016438,2]
[338644849,1726841448603,-500.0,0.00016438,2]
[338644850,1726841448615,-314.22,0.00016438,2]
[338644851,1726841448625,-523.43,0.00016438,2]
[338644852,1726841448635,-736.12,0.00016438,2]
[338644853,1726841448647,-479.92545866,0.00016438,2]
[338644854,1726841448658,-500.0,0.00016438,2]
[338644855,1726841448668,-271.51439496,0.00016438,2]
[338644856,1726841448679,-741.38,0.00016438,2]
[338644857,1726841448689,-506.46,0.00016438,2]
[338644858,1726841448699,-500.0,0.00016438,2]
[338644859,1726841448710,-500.0,0.00016438,2]
[338644860,1726841448722,-58932.27,0.00016438,2]
[338644861,1726841448733,-500.0,0.00016438,2]
[338644862,1726841448743,-500.0,0.00016438,2]
[338644863,1726841448753,-1302.15,0.00016438,2]
[338644864,1726841448763,-500.0,0.00016438,2]
[338644865,1726841448773,-500.0,0.00016438,2]
[338644866,1726841448783,-500.0,0.00016438,2]
[338644867,1726841448794,-500.0,0.00016438,2]
[338644868,1726841448804,-8334.76,0.00016438,2]
[338644869,1726841448814,-761.04,0.00016438,2]
[338644870,1726841448826,-500.0,0.00016438,2]
[338644871,1726841448836,-500.0,0.00016438,2]
[338644872,1726841448846,-500.0,0.00016438,2]
[338644873,1726841448856,-2007.71,0.00016438,2]
[338644874,1726841448866,-2007.71,0.00016438,2]
[338644875,1726841448877,-500.0,0.00016438,2]
[338644876,1726841448886,-2007.71,0.00016438,2]
[338644877,1726841448953,-2007.71,0.00016438,2]
[338644878,1726841448963,-500.0,0.00016438,2]
[338644879,1726841448972,-310.01,0.00016438,2]
[338644880,1726841448982,-2007.71,0.00016438,2]
[338644881,1726841448991,-2007.71,0.00016438,2]
[338644882,1726841449001,-2007.71,0.00016438,2]
[338644883,1726841449014,-2007.71,0.00016438,2]
[338644884,1726841449025,-2007.71,0.00016438,2]
[338644885,1726841449034,-500.0,0.00016438,2]
[338644886,1726841449045,-2007.71,0.00016438,2]
[338644887,1726841449054,-2007.71,0.00016438,2]
[338644888,1726841449064,-2007.71,0.00016438,2]
[338644889,1726841449073,-462.298068,0.00016438,2]
[338644890,1726841449082,-151.0,0.00016438,2]
[338644891,1726841449092,-462.298068,0.00016438,2]
[338644892,1726841449101,-462.298068,0.00016438,2]
[338644893,1726841449111,-462.298068,0.00016438,2]
[338644894,1726841449120,-500.0,0.00016438,2]
[338644895,1726841449129,-500.0,0.00016438,2]
[338644896,1726841449139,-500.0,0.00016438,2]
[338644897,1726841449149,-2007.71,0.00016438,2]
[338644898,1726841449159,-2007.71,0.00016438,2]
[338644899,1726841449169,-500.0,0.00016438,2]
[338644900,1726841449179,-2007.71,0.00016438,2]
[338644901,1726841449188,-462.298068,0.00016438,2]
[338644902,1726841449198,-462.298068,0.00016438,2]
[338644903,1726841449208,-2007.71,0.00016438,2]
[338644904,1726841449218,-462.298068,0.00016438,2]
[338644905,1726841449228,-2007.71,0.00016438,2]
[338644906,1726841449237,-462.298068,0.00016438,2]
[338644907,1726841449247,-500.0,0.00016438,2]
[338644908,1726841449256,-2007.71,0.00016438,2]
[338644909,1726841449266,-2007.71,0.00016438,2]
[338644910,1726841449275,-2007.71,0.00016438,2]
[338644911,1726841449284,-2007.71,0.00016438,2]
[338644912,1726841449295,-2007.71,0.00016438,2]
[338644913,1726841449305,-2007.71,0.00016438,2]
[338644914,1726841449314,-500.0,0.00016438,2]
[338644915,1726841449324,-2007.78171115,0.00016438,2]
[338644916,1726841449333,-500.0,0.00016438,2]
[338644917,1726841449342,-500.0,0.00016438,2]
[338644918,1726841449352,-500.0,0.00016438,2]
[338644919,1726841449361,-265.4551109,0.00016438,2]
[338644920,1726841449370,-500.0,0.00016438,2]
[338644921,1726841449380,-500.0,0.00016438,2]
[338644922,1726841449390,-500.0,0.00016438,2]
[338644923,1726841449400,-500.0,0.00016438,2]
[338644924,1726841449409,-151.0,0.00016438,2]
[338644925,1726841449418,-151.0,0.00016438,2]
[338644926,1726841449427,-151.0,0.00016438,2]
[338644927,1726841449437,-151.0,0.00016438,2]
[338644928,1726841449446,-500.0,0.00016438,2]
[338644929,1726841449455,-500.0,0.00016438,2]
[338644930,1726841449465,-151.0,0.00016438,2]
[338644931,1726841449474,-500.0,0.00016438,2]
[338644932,1726841449484,-500.0,0.00016438,2]
[338644933,1726841449493,-151.0,0.00016438,2]
[338644934,1726841449503,-500.0,0.00016438,2]
[338644935,1726841449512,-500.0,0.00016438,2]
[338644936,1726841449522,-500.0,0.00016438,2]
[338644937,1726841449532,-500.0,0.00016438,2]
[338644938,1726841449542,-151.0,0.00016438,2]
[338644939,1726841449552,-151.0,0.00016438,2]
[338644940,1726841449562,-151.0,0.00016438,2]
[338644941,1726841449571,-500.13843862,0.00016438,2]
[338644942,1726841449580,-151.0,0.00016438,2]
[338644943,1726841449589,-500.0,0.00016438,2]
[338644944,1726841449602,-500.0,0.00016438,2]
[338644945,1726841449612,-538.39,0.00016438,2]
[338644946,1726841449622,-500.0,0.00016438,2]
[338644947,1726841449633,-151.0,0.00016438,2]
[338644948,1726841449645,-154.317256,0.00016438,2]
[338644949,1726841449655,-500.0,0.00016438,2]
[338644950,1726841449665,-500.76794748,0.00016438,2]
[338644951,1726841449674,-500.0,0.00016438,2]
[338644952,1726841449684,-500.0,0.00016438,2]
[338644953,1726841449693,-303.49212611,0.00016438,2]
[338644954,1726841449702,-500.0,0.00016438,2]
[338644955,1726841449713,-500.0,0.00016438,2]
[338644956,1726841449723,-500.0,0.00016438,2]
[338644957,1726841449734,-500.0,0.00016438,2]
[338644958,1726841449744,-500.0,0.00016438,2]
[338644959,1726841449754,-597.48,0.00016438,2]
[338644960,1726841449765,-2511.87,0.00016438,2]
[338644961,1726841449775,-500.0,0.00016438,2]
[338644962,1726841449784,-298.46684654,0.00016438,2]
[338644963,1726841449796,-500.0,0.00016438,2]
[338644964,1726841449806,-500.0,0.00016438,2]
[338644965,1726841449815,-151.0,0.00016438,2]
[338644966,1726841449824,-151.0,0.00016438,2]
[338644967,1726841449833,-3000.0,0.0001644,2]
[338644968,1726841449843,-1000.0,0.00016445,2]
[338644969,1726841449852,-3000.0,0.0001645,2]
[338644970,1726841449862,-3000.0,0.0001646,2]
[338644971,1726841449872,-3000.0,0.0001647,2]
[338644972,1726841449881,-500.0,0.00016473,2]
[338644973,1726841449891,-500.0,0.00016473,2]
[338644974,1726841449900,-230.43318643,0.00016473,2]
[338644975,1726841449910,-500.4802176,0.00016473,2]
[338644976,1726841449920,-500.0,0.00016473,2]
[338644977,1726841449929,-254.20645201,0.00016473,2]
[338644978,1726841449938,-210.90288632,0.00016473,2]
[338644979,1726841449948,-500.0,0.00016473,2]
[338644980,1726841449957,-360.1957471,0.00016473,2]
[338644981,1726841449967,-386.97029397,0.00016473,2]
[338644982,1726841449977,-500.0,0.00016473,2]
[338644983,1726841449986,-500.0,0.00016473,2]
[338644984,1726841449996,-500.9561753,0.00016473,2]
[338644985,1726841450005,-500.32467203,0.00016473,2]
[338644986,1726841450014,-500.0,0.00016473,2]
[338644987,1726841450024,-500.0,0.00016473,2]
[338644988,1726841450033,-500.0,0.00016473,2]
[338644989,1726841450043,-500.0,0.00016473,2]
[338644990,1726841450052,-500.0,0.00016473,2]
[338644991,1726841450062,-160.09702408,0.00016473,2]
[338644992,1726841450071,-500.52302934,0.00016473,2]
[338644993,1726841450080,-500.0,0.00016473,2]
[338644994,1726841450090,-500.95299395,0.00016473,2]
[338644995,1726841450099,-500.0,0.00016473,2]
[338644996,1726841450108,-500.0,0.00016473,2]
[338644997,1726841450117,-500.0,0.00016473,2]
[338644998,1726841450126,-500.0,0.00016473,2]
[338644999,1726841450135,-500.0,0.00016473,2]
[338645000,1726841450148,-500.0,0.00016473,2]
[338645001,1726841450170,-500.0,0.00016473,2]
[338645002,1726841450190,-500.91261053,0.00016473,2]
[338645003,1726841450212,-500.0,0.00016473,2]
[338645004,1726841450234,-500.0,0.00016473,2]
[338645005,1726841450256,-500.0,0.00016473,2]
[338645006,1726841450278,-500.0,0.00016473,2]
[338645007,1726841450304,-500.0,0.00016473,2]
[338645008,1726841450321,-151.0,0.00016473,2]
[338645009,1726841450330,-151.0,0.00016473,2]
[338645010,1726841450339,-474.968286,0.00016473,2]
[338645011,1726841450349,-474.968286,0.00016473,2]
[338645012,1726841450358,-151.0,0.00016473,2]
[338645013,1726841450367,-3000.0,0.0001648,2]
[338645014,1726841450377,-278.459532,0.0001648,2]
[338645015,1726841450386,-165.263601,0.0001648,2]
[338645016,1726841450396,-278.459532,0.0001648,2]
[338645017,1726841450405,-165.263601,0.0001648,2]
[338645018,1726841450415,-3000.0,0.0001649,2]
[338645019,1726841450425,-462.298068,0.0001649,2]
[338645020,1726841450435,-462.298068,0.0001649,2]
[338645021,1726841450445,-151.0,0.0001649,2]
[338645022,1726841450455,-11617.976224,0.000165,2]
[338645023,1726841450464,-150.112233,0.000165,2]
[338645024,1726841450473,-150.112233,0.000165,2]
[338645025,1726841450483,-200.29798708,0.000165,3]
[338645026,1726841450492,-3000.0,0.000165,2]
[338645027,1726841450502,-151.0,0.0001651,2]
[338645028,1726841450511,-151.0,0.0001651,2]
[338645029,1726841450521,-3000.0,0.0001651,2]
[338645030,1726841450531,-3000.0,0.0001652,2]
[338645031,1726841450543,-3000.0,0.0001653,2]
[338645032,1726841450552,-3000.0,0.0001654,2]
[338645033,1726841450562,-151.0,0.0001655,2]
[338645034,1726841450571,-3000.0,0.0001655,2]
[338645035,1726841450580,-3000.0,0.0001656,2]
[338645036,1726841450590,-1000.0,0.00016564,2]
[338645037,1726841450602,-3000.0,0.0001657,2]
[338645038,1726841450612,-420.0,0.00016578,2]
[338645039,1726841450623,-4785.308029,0.0001658,2]
[338645040,1726841450633,-150.112233,0.000166,2]
[338645041,1726841450645,-150.112233,0.000166,2]
[338645042,1726841450657,-420.0,0.00016665,2]
[338645043,1726841450666,-478.45338864,0.000167,2]
[338645044,1726841450678,-150.112233,0.000167,2]
[338645045,1726841450688,-1076.45659559,0.00016712,2]
[338645046,1726841450697,-185.6,0.00016712,2]
[338645047,1726841450707,-500.0,0.00016712,2]
[338645048,1726841450716,-500.0,0.00016712,2]
[338645049,1726841450725,-500.0,0.00016712,2]
[338645050,1726841450735,-500.0,0.00016712,2]
[338645051,1726841450744,-500.0,0.00016712,2]
[338645052,1726841450754,-618.69205467,0.00016712,2]
[338645053,1726841450764,-500.0,0.00016712,2]
[338645054,1726841450773,-500.0,0.00016712,2]
[338645055,1726841450783,-500.0,0.00016712,2]
[338645056,1726841450794,-501.50384832,0.00016712,2]
[338645057,1726841450805,-500.0,0.00016712,2]
[338645058,1726841450815,-500.0,0.00016712,2]
[338645059,1726841450825,-500.0,0.00016712,2]
[338645060,1726841450835,-500.0,0.00016712,2]
[338645061,1726841450844,-500.0,0.00016712,2]
[338645062,1726841450854,-501.77,0.00016712,2]
[338645063,1726841450863,-241.86783431,0.00016712,2]
[338645064,1726841450873,-500.0,0.00016712,2]
[338645065,1726841450884,-500.0,0.00016712,2]
[338645066,1726841450894,-618.27,0.00016712,2]
[338645067,1726841450904,-502.11038455,0.00016712,2]
[338645068,1726841450915,-638.6,0.00016712,2]
[338645069,1726841450926,-625.54,0.00016712,2]
[338645070,1726841450937,-500.0,0.00016712,2]
[338645071,1726841450949,-500.0,0.00016712,2]
[338645072,1726841450960,-500.0,0.00016712,2]
[338645073,1726841450970,-500.0,0.00016712,2]
[338645074,1726841450979,-526.91,0.00016712,2]
[338645075,1726841450989,-500.0,0.00016712,2]
[338645076,1726841450998,-839.4,0.00016712,2]
[338645077,1726841451008,-500.0,0.00016712,2]
[338645078,1726841451019,-500.0,0.00016712,2]
[338645079,1726841451030,-681.44,0.00016712,2]
[338645080,1726841451040,-500.0,0.00016712,2]
[338645081,1726841451060,-292.27,0.00016712,2]
[338645082,1726841451071,-500.0,0.00016712,2]
[338645083,1726841451080,-500.0,0.00016712,2]
[338645084,1726841451089,-500.0,0.00016712,2]
[338645085,1726841451099,-500.0,0.00016712,2]
[338645086,1726841451108,-523.05177231,0.00016712,2]
[338645087,1726841451118,-500.0,0.00016712,2]
[338645088,1726841451127,-500.0,0.00016712,2]
[338645089,1726841451137,-500.0,0.00016712,2]
[338645090,1726841451146,-500.0,0.00016712,2]
[338645091,1726841451156,-799.02,0.00016712,2]
[338645092,1726841451166,-280.49,0.00016712,2]
[338645093,1726841451175,-500.0,0.00016712,2]
[338645094,1726841451185,-500.0,0.00016712,2]
[338645095,1726841451195,-500.0,0.00016712,2]
[338645096,1726841451207,-500.0,0.00016712,2]
[338645097,1726841451218,-874.95,0.00016712,2]
[338645098,1726841451227,-500.0,0.00016712,2]
[338645099,1726841451238,-500.0,0.00016712,2]
[338645100,1726841451248,-618.88,0.00016712,2]
[338645101,1726841451257,-500.0,0.00016712,2]
[338645102,1726841451267,-500.0,0.00016712,2]
[338645103,1726841451277,-500.0,0.00016712,2]
[338645104,1726841451287,-500.0,0.00016712,2]
[338645105,1726841451300,-500.0,0.00016712,2]
[338645106,1726841451310,-536.92,0.00016712,2]
[338645107,1726841451321,-500.0,0.00016712,2]
[338645108,1726841451330,-500.0,0.00016712,2]
[338645109,1726841451341,-500.0,0.00016712,2]
[338645110,1726841451351,-500.0,0.00016712,2]
[338645111,1726841451361,-500.0,0.00016712,2]
[338645112,1726841451371,-500.0,0.00016712,2]
[338645113,1726841451381,-500.0,0.00016712,2]
[338645114,1726841451390,-713.32,0.00016712,2]
[338645115,1726841451400,-351.49,0.00016712,2]
[338645116,1726841451409,-500.0,0.00016712,2]
[338645117,1726841451419,-512.42,0.00016712,2]
[338645118,1726841451428,-500.0,0.00016712,2]
[338645119,1726841451438,-500.0,0.00016712,2]
[338645120,1726841451448,-500.0,0.00016712,2]
[338645121,1726841451458,-207.74179419,0.00016712,2]
[338645122,1726841451468,-500.0,0.00016712,2]
[338645123,1726841451478,-391.25814725,0.00016712,2]
[338645124,1726841451488,-835.97,0.00016712,2]
[338645125,1726841451498,-500.0,0.00016712,2]
[338645126,1726841451507,-500.0,0.00016712,2]
[338645127,1726841451517,-500.0,0.00016712,2]
[338645128,1726841451526,-500.0,0.00016712,2]
[338645129,1726841451536,-533.09,0.00016712,2]
[338645130,1726841451546,-719.41,0.00016712,2]
[338645131,1726841451556,-500.0,0.00016712,2]
[338645132,1726841451566,-500.0,0.00016712,2]
[338645133,1726841451576,-634.44,0.00016712,2]
[338645134,1726841451586,-500.0,0.00016712,2]
[338645135,1726841451595,-592.83,0.00016712,2]
[338645136,1726841451607,-500.0,0.00016712,2]
[338645137,1726841451617,-599.81651463,0.00016712,2]
[338645138,1726841451627,-500.0,0.00016712,2]
[338645139,1726841451636,-531.4,0.00016712,2]
[338645140,1726841451646,-500.0,0.00016712,2]
[338645141,1726841451656,-500.0,0.00016712,2]
[338645142,1726841451665,-500.0,0.00016712,2]
[338645143,1726841451675,-500.0,0.00016712,2]
[338645144,1726841451687,-500.0,0.00016712,2]
[338645145,1726841451697,-500.0,0.00016712,2]
[338645146,1726841451706,-500.0,0.00016712,2]
[338645147,1726841451716,-526.55,0.00016712,2]
[338645148,1726841451725,-500.0,0.00016712,2]
[338645149,1726841451735,-500.0,0.00016712,2]
[338645150,1726841451746,-500.0,0.00016712,2]
[338645151,1726841451756,-500.0,0.00016712,2]
[338645152,1726841451766,-500.0,0.00016712,2]
[338645153,1726841451776,-500.0,0.00016712,2]
[338645154,1726841451784,-500.0,0.00016712,2]
[338645155,1726841451794,-500.0,0.00016712,2]
[338645156,1726841451804,-259.36,0.00016712,2]
[338645157,1726841451814,-794.1,0.00016712,2]
[338645158,1726841451826,-500.0,0.00016712,2]
[338645159,1726841451836,-500.0,0.00016712,2]
[338645160,1726841451847,-616.59516028,0.00016712,2]
[338645161,1726841451859,-386.32054029,0.00016712,2]
[338645162,1726841451870,-509.61,0.00016712,2]
[338645163,1726841451879,-500.0,0.00016712,2]
[338645164,1726841451889,-500.0,0.00016712,2]
[338645165,1726841451898,-500.0,0.00016712,2]
[338645166,1726841451908,-500.0,0.00016712,2]
[338645167,1726841451918,-500.0,0.00016712,2]
[338645168,1726841451929,-500.0,0.00016712,2]
[338645169,1726841451940,-500.0,0.00016712,2]
[338645170,1726841451950,-500.0,0.00016712,2]
[338645171,1726841451960,-500.0,0.00016712,2]
[338645172,1726841451969,-500.0,0.00016712,2]
[338645173,1726841451979,-500.0,0.00016712,2]
[338645174,1726841451989,-500.0,0.00016712,2]
[338645175,1726841451999,-506.52442458,0.00016712,2]
[338645176,1726841452008,-500.0,0.00016712,2]
[338645177,1726841452019,-500.0,0.00016712,2]
[338645178,1726841452030,-500.0,0.00016712,2]
[338645179,1726841452040,-500.0,0.00016712,2]
[338645180,1726841452050,-503.27593372,0.00016712,2]
[338645181,1726841452060,-500.0,0.00016712,2]
[338645182,1726841452069,-500.0,0.00016712,2]
[338645183,1726841452079,-502.13462649,0.00016712,2]
[338645184,1726841452088,-500.0,0.00016712,2]
[338645185,1726841452098,-500.0,0.00016712,2]
[338645186,1726841452107,-500.0,0.00016712,2]
[338645187,1726841452117,-500.0,0.00016712,2]
[338645188,1726841452126,-840.7,0.00016712,2]
[338645189,1726841452136,-500.0,0.00016712,2]
[338645190,1726841452146,-500.0,0.00016712,2]
[338645191,1726841452155,-500.0,0.00016712,2]
[338645192,1726841452164,-500.0,0.00016712,2]
[338645193,1726841452174,-501.04923681,0.00016712,2]
[338645194,1726841452184,-602.64,0.00016712,2]
[338645195,1726841452193,-500.0,0.00016712,2]
[338645196,1726841452203,-500.0,0.00016712,2]
[338645197,1726841452213,-500.0,0.00016712,2]
[338645198,1726841452222,-678.4,0.00016712,2]
[338645199,1726841452231,-500.0,0.00016712,2]